fUSD/lending_fUSD_20251006
["ID","MTS","AMOUNT","RATE_DAILY","PERIOD"]
[389615579,1759750232619,-516.0,0.00015885,2]
[389615580,1759750232629,-150.0,0.00015885,2]
[389615581,1759750232638,-243.99387068,0.00015885,2]
[389615582,1759750232649,-500.0,0.00015885,2]
[389615583,1759750232659,-150.0,0.00015885,2]
[389615584,1759750232670,-1537.0,0.00015885,2]
[389615585,1759750232679,-1000.0,0.00015885,2]
[389615586,1759750232689,-430.16,0.00015886,2]
[389615587,1759750232699,-430.46,0.00015887,2]
[389615588,1759750232708,-442.16,0.00015887,2]
[389615589,1759750232717,-441.33,0.00015887,2]
[389615590,1759750232726,-434.17,0.00015887,2]
[389615591,1759750232737,-433.68,0.00015887,2]
[389615592,1759750232750,-150.0,0.00015887,2]
[389615593,1759750232759,-531.0,0.00015887,2]
[389615594,1759750232769,-3136.0,0.00015887,2]
[389615595,1759750232778,-150.0,0.00015887,2]
[389615596,1759750232787,-427.45,0.00015887,2]
[389615597,1759750232797,-438.24,0.00015887,2]
[389615598,1759750232807,-438.65,0.00015887,2]
[389615599,1759750232817,-442.58,0.00015887,2]
[389615600,1759750232826,-441.58,0.00015889,2]
[389615601,1759750232835,-434.75,0.00015889,2]
[389615602,1759750232845,-436.41,0.00015889,2]
[389615603,1759750232854,-436.73,0.00015889,2]
[389615604,1759750232864,-442.07,0.00015889,2]
[389615605,1759750232874,-432.34,0.00015889,2]
[389615606,1759750232883,-435.21,0.0001589,2]
[389615607,1759750232894,-431.57,0.0001589,2]
[389615608,1759750232904,-432.67,0.0001589,2]
[389615609,1759750232914,-428.16,0.0001589,2]
[389615610,1759750232924,-214.36,0.0001589,2]
[389615611,1759750232933,-443.73,0.00015891,2]
[389615612,1759750232944,-439.26,0.00015891,2]
[389615613,1759750232953,-432.48,0.00015893,2]
[389615614,1759750232962,-435.29,0.00015893,2]
[389615615,1759750232972,-443.97,0.00015894,2]
[389615616,1759750232982,-442.45,0.00015894,2]
[389615617,1759750232996,-436.81,0.00015894,2]
[389615618,1759750233007,-433.28,0.00015895,2]
[389615619,1759750233017,-444.52,0.00015895,2]
[389615620,1759750233026,-432.44,0.00015895,2]
[389615621,1759750233036,-150.27,0.00015895,2]
[389615622,1759750233046,-433.39,0.00015895,2]
[389615623,1759750233055,-441.99,0.00015895,2]
[389615624,1759750233065,-435.97,0.00015895,2]
[389615625,1759750233075,-429.95,0.00015895,2]
[389615626,1759750233084,-438.41,0.00015895,2]
[389615627,1759750233093,-444.58,0.00015895,2]
[389615628,1759750233103,-434.56,0.00015895,2]
[389615629,1759750233112,-441.54,0.00015895,2]
[389615630,1759750233121,-431.96,0.00015895,2]
[389615631,1759750233130,-437.29,0.00015895,2]
[389615632,1759750233139,-440.6,0.00015895,2]
[389615633,1759750233154,-504.0,0.00015932,2]
[389615634,1759750233165,-2500.0,0.0001595,2]
[389615635,1759750233181,-2000.0,0.0001595,2]
[389615636,1759750233190,-500.0,0.0001595,2]
[389615637,1759750233200,-150.0,0.0001595,2]
[389615638,1759750233210,-150.0,0.00015952,2]
[389615639,1759750233220,-22500.0,0.00016,2]
[389615640,1759750233231,-2224.49913545,0.00016,3]
[389615641,1759750233244,-10000.0,0.00016,2]
[389615642,1759750233254,-346.72887981,0.00016047,2]
[389615643,1759750233265,-11514.49123381,0.0001605,2]
[389615644,1759750233279,-558.80631588,0.0001605,2]
[389615645,1759750233300,-376.55368136,0.0001605,2]
[389615646,1759750233321,-491.0360497,0.0001605,2]
[389615647,1759750233334,-342.48315084,0.0001605,2]
[389615648,1759750233346,-843.72182876,0.0001605,2]
[389615649,1759750233357,-1009.87494404,0.0001605,2]
[389615650,1759750233369,-5084.35376203,0.0001605,2]
[389615651,1759750233385,-2278.67903358,0.0001605,2]
[389615652,1759750233394,-346.72887981,0.00016079,2]
[389615653,1759750233405,-1043.86711164,0.000161,2]
[389615655,1759750237576,-1000.0,0.0001588,2]
[389615656,1759750237587,-1276.41639068,0.000161,2]
[389615657,1759750237599,-11336.71835877,0.000161,2]
[389615658,1759750237892,-8842.99813891,0.000161,2]
[389615659,1759750237901,-2658.96594743,0.00016109,2]
[389615660,1759750237911,-346.72887981,0.00016112,2]
[389615661,1759750237921,-1000.0,0.00016125,2]
[389615662,1759750237930,-10000.0,0.00016133,2]
[389615663,1759750237939,-346.72887981,0.00016144,2]
[389615664,1759750237949,-1813.0,0.00016147,2]
[389615665,1759750237959,-22500.0,0.0001615,2]
[389615666,1759750237968,-1813.0,0.00016151,2]
[389615667,1759750237978,-500.0,0.00016159,2]
[389615668,1759750237988,-150.0,0.00016159,2]
[389615669,1759750237997,-150.0,0.00016159,2]
[389615670,1759750238007,-150.0,0.00016159,2]
[389615671,1759750238020,-150.0,0.00016159,2]
[389615672,1759750238030,-482.0,0.00016159,2]
[389615673,1759750238040,-790.0,0.00016159,2]
[389615674,1759750238050,-516.0,0.00016159,2]
[389615675,1759750238060,-150.0,0.00016159,2]
[389615676,1759750238070,-500.0,0.00016159,2]
[389615677,1759750238079,-150.0,0.00016159,2]
[389615678,1759750238089,-1537.0,0.00016159,2]
[389615679,1759750238098,-150.0,0.00016161,2]
[389615710,1759750238381,-531.0,0.00016161,2]
[389615711,1759750238412,-3136.0,0.00016161,2]
[389615712,1759750238422,-150.0,0.00016161,2]
[389615713,1759750238435,-214.36,0.00016164,2]
[389615714,1759750238445,-346.72887981,0.00016176,2]
[389615715,1759750238460,-568.36,0.0001619,2]
[389615716,1759750238470,-22148.26,0.000162,2]
[389615717,1759750238480,-5526.20234134,0.000162,2]
[389615718,1759750238490,-150.0,0.00016203,2]
[389615719,1759750238502,-346.72887981,0.00016209,2]
[389615720,1759750238511,-1000.0,0.00016221,2]
[389615721,1759750238521,-346.72887981,0.00016241,2]
[389615722,1759750238530,-153.0,0.00016266,2]
[389615723,1759750238539,-153.0,0.00016266,2]
[389615724,1759750238549,-153.0,0.00016266,2]
[389615725,1759750238558,-153.0,0.00016266,2]
[389615726,1759750238568,-153.0,0.00016266,2]
[389615727,1759750238578,-153.0,0.00016266,2]
[389615728,1759750238588,-153.0,0.00016266,2]
[389615729,1759750238598,-153.0,0.00016266,2]
[389615730,1759750238608,-153.0,0.00016266,2]
[389615731,1759750238618,-153.0,0.00016266,2]
[389615732,1759750238631,-153.0,0.00016266,2]
[389615733,1759750238640,-153.0,0.00016266,2]
[389615734,1759750238650,-153.0,0.00016266,2]
[389615735,1759750238660,-182.99591805,0.00016266,2]
[389615736,1759750238670,-150.0,0.00016266,2]
[389615737,1759750238679,-150.0,0.00016266,2]
[389615738,1759750238688,-150.0,0.00016266,2]
[389615739,1759750238698,-546.0,0.00016266,2]
[389615740,1759750238708,-150.0,0.00016266,2]
[389615741,1759750238717,-150.0,0.00016266,2]
[389615742,1759750238727,-150.0,0.00016266,2]
[389615743,1759750238736,-150.0,0.00016266,2]
[389615744,1759750238746,-500.0,0.00016266,2]
[389615745,1759750238758,-500.0,0.00016266,2]
[389615746,1759750238768,-10000.0,0.00016267,2]
[389615747,1759750238778,-585.97284456,0.0001627,2]
[389615748,1759750238787,-585.97284456,0.00016271,2]
[389615749,1759750238797,-317.97116121,0.00016273,2]
[389615750,1759750238806,-346.72887981,0.00016273,2]
[389615751,1759750238816,-187.87273912,0.00016274,2]
[389615752,1759750238825,-317.97116121,0.00016283,2]
[389615753,1759750238834,-163.227,0.00016284,2]
[389615754,1759750238844,-2632.306,0.00016284,2]
[389615755,1759750238856,-1000.0,0.00016288,2]
[389615756,1759750238866,-585.97284456,0.00016302,2]
[389615757,1759750238876,-346.72887981,0.00016306,2]
[389615758,1759750238886,-200.0,0.00016307,2]
[389615759,1759750238895,-4523.25128594,0.00016312,2]
[389615760,1759750238905,-585.97284456,0.00016315,2]
[389615761,1759750238914,-568.36,0.0001632,2]
[389615762,1759750238925,-5000.0,0.0001633,2]
[389615763,1759750238934,-353.06602062,0.00016333,2]
[389615764,1759750238944,-353.06602054,0.00016334,2]
[389615765,1759750238953,-353.06602054,0.00016334,2]
[389615766,1759750238962,-353.06602054,0.00016335,2]
[389615767,1759750238972,-353.06602054,0.00016335,2]
[389615768,1759750238983,-179.42620403,0.00016338,2]
[389615769,1759750238993,-164.39995926,0.00016338,2]
[389615770,1759750239005,-346.72887981,0.00016338,2]
[389615771,1759750239015,-210.83704388,0.00016338,2]
[389615772,1759750239026,-1425.0,0.00016354,2]
[389615773,1759750239035,-8809.182981,0.00016356,2]
[389615774,1759750239046,-2131.9595734,0.00016356,2]
[389615775,1759750239055,-4523.25128594,0.00016361,2]
[389615776,1759750239066,-585.97284456,0.00016363,2]
[389615777,1759750239076,-186573.06776159,0.00016365,2]
[389615778,1759750239085,-159.68885,0.00016365,2]
[389615779,1759750239095,-317.97116121,0.00016366,2]
[389615780,1759750239105,-317.97116121,0.00016366,2]
[389615781,1759750239115,-378.06,0.00016367,2]
[389615782,1759750239125,-52029.31888259,0.00016369,2]
[389615783,1759750239135,-4523.25128594,0.00016371,2]
[389615784,1759750239147,-2500.0,0.00016374,3]
[389615785,1759750239158,-317.97116121,0.00016375,2]
[389615786,1759750239169,-110098.13893179,0.00016378,2]
[389615787,1759750239179,-42745.33994637,0.00016382,2]
[389615788,1759750239189,-2500.0,0.00016382,3]
[389615789,1759750239200,-33377.85515058,0.00016388,2]
[389615790,1759750239210,-296.09293889,0.00016388,2]
[389615791,1759750239220,-42745.33994637,0.0001639,2]
[389615792,1759750239230,-2500.0,0.00016391,3]
[389615793,1759750239239,-2500.0,0.00016391,3]
[389615794,1759750239250,-534306.46097198,0.00016392,2]
[389615795,1759750239260,-168.40353846,0.00016392,2]
[389615796,1759750239270,-350.46440155,0.00016392,2]
[389615797,1759750239280,-4523.25128594,0.00016393,2]
[389615798,1759750239290,-4523.25128594,0.00016396,2]
[389615799,1759750239299,-1061.16667696,0.00016397,2]
[389615800,1759750239319,-534306.46097198,0.00016398,2]
[389615801,1759750239330,-150.0,0.000164,2]
[389615802,1759750239340,-2500.0,0.000164,3]
[389615803,1759750239351,-2500.0,0.000164,3]
[389615804,1759750239361,-10000.0,0.000164,2]
[389615805,1759750239372,-385.0,0.000164,2]
[389615806,1759750239382,-568.36,0.00016401,2]
[389615807,1759750239392,-568.36,0.00016401,2]
[389615808,1759750239402,-594.0,0.00016401,2]
[389615809,1759750239412,-594.0,0.00016401,2]
[389615810,1759750239421,-151.0,0.00016402,2]
[389615812,1759750239431,-594.0,0.00016404,2]
[389615813,1759750239441,-150.0,0.00016405,2]
[389615814,1759750239455,-594.0,0.00016409,2]
[389615815,1759750239465,-90818.0,0.00016411,2]
[389615816,1759750239475,-568.36,0.0001642,2]
[389615817,1759750239485,-594.0,0.00016421,2]
[389615818,1759750239495,-1000.0,0.00016428,2]
[389615819,1759750239508,-538180.00794345,0.0001643,5]
[389615820,1759750239518,-769.35182366,0.00016433,2]
[389615821,1759750239528,-500.0,0.00016433,2]
[389615822,1759750239538,-201.69082476,0.00016433,2]
[389615823,1759750239547,-200.0,0.00016433,2]
[389615824,1759750239557,-150.0,0.00016433,2]
[389615825,1759750239567,-482.0,0.00016433,2]
[389615826,1759750239576,-790.0,0.00016433,2]
[389615827,1759750239586,-516.0,0.00016433,2]
[389615828,1759750239596,-150.0,0.00016433,2]
[389615829,1759750239607,-500.0,0.00016433,2]
[389615830,1759750239616,-150.0,0.00016433,2]
[389615831,1759750239626,-1537.0,0.00016433,2]
[389615832,1759750239636,-150.0,0.00016435,2]
[389615833,1759750239646,-531.0,0.00016435,2]
[389615834,1759750239655,-3136.0,0.00016435,2]
[389615835,1759750239665,-150.0,0.00016435,2]
[389615836,1759750239674,-300.0,0.00016437,2]
[389615837,1759750239684,-666.0,0.00016437,2]
[389615838,1759750239694,-43788.92513547,0.00016438,2]
[389615839,1759750239704,-305.663789,0.00016438,2]
[389615840,1759750239714,-270.583999,0.00016438,2]
[389615841,1759750239723,-300.0,0.00016438,2]
[389615842,1759750239733,-300.0,0.00016438,2]
[389615843,1759750239745,-300.0,0.00016438,2]
[389615844,1759750239755,-300.0,0.00016438,2]
[389615845,1759750239765,-300.0,0.00016438,2]
[389615846,1759750239774,-300.0,0.00016438,2]
[389615847,1759750239784,-300.0,0.00016438,2]
[389615848,1759750239794,-300.0,0.00016438,2]
[389615849,1759750239805,-300.0,0.00016438,2]
[389615850,1759750239815,-300.0,0.00016438,2]
[389615851,1759750239824,-300.0,0.00016438,2]
[389615852,1759750239834,-300.0,0.00016438,2]
[389615853,1759750239843,-300.0,0.00016438,2]
[389615854,1759750239853,-300.0,0.00016438,2]
[389615855,1759750239862,-300.0,0.00016438,2]
[389615856,1759750239872,-300.0,0.00016438,2]
[389615857,1759750239881,-300.0,0.00016438,2]
[389615858,1759750239890,-300.0,0.00016438,2]
[389615859,1759750239899,-300.0,0.00016438,2]
[389615860,1759750239909,-300.0,0.00016438,2]
[389615861,1759750239923,-300.0,0.00016438,2]
[389615862,1759750239932,-300.0,0.00016438,2]
[389615863,1759750239942,-300.0,0.00016438,2]
[389615864,1759750239952,-300.0,0.00016438,2]
[389615865,1759750239962,-300.0,0.00016438,2]
[389615866,1759750239971,-300.0,0.00016438,2]
[389615867,1759750239982,-300.0,0.00016438,2]
[389615868,1759750239992,-300.0,0.00016438,2]
[389615869,1759750240003,-300.0,0.00016438,2]
[389615870,1759750240012,-300.0,0.00016438,2]
[389615871,1759750240022,-300.0,0.00016438,2]
[389615872,1759750240033,-300.0,0.00016438,2]
[389615873,1759750240043,-300.0,0.00016438,2]
[389615874,1759750240053,-300.0,0.00016438,2]
[389615875,1759750240063,-300.0,0.00016438,2]
[389615876,1759750240073,-300.0,0.00016438,2]
[389615877,1759750240083,-300.0,0.00016438,2]
[389615878,1759750240092,-300.0,0.00016438,2]
[389615879,1759750240102,-300.0,0.00016438,2]
[389615880,1759750240112,-300.0,0.00016438,2]
[389615881,1759750240122,-404.93963033,0.00016438,2]
[389615882,1759750240133,-502.70131991,0.00016438,2]
[389615883,1759750240142,-500.0,0.00016438,2]
[389615884,1759750240152,-500.0,0.00016438,2]
[389615885,1759750240162,-500.0,0.00016438,2]
[389615886,1759750240172,-500.0,0.00016438,2]
[389615887,1759750240182,-500.0,0.00016438,2]
[389615888,1759750240191,-500.0,0.00016438,2]
[389615889,1759750240201,-500.0,0.00016438,2]
[389615890,1759750240211,-500.0,0.00016438,2]
[389615891,1759750240220,-500.0,0.00016438,2]
[389615892,1759750240231,-500.0,0.00016438,2]
[389615894,1759750240240,-500.0,0.00016438,2]
[389615896,1759750240250,-500.0,0.00016438,2]
[389615898,1759750240260,-500.0,0.00016438,2]
[389615900,1759750240270,-500.0,0.00016438,2]
[389615902,1759750240279,-500.0,0.00016438,2]
[389615904,1759750240289,-503.07714018,0.00016438,2]
[389615906,1759750240298,-500.0,0.00016438,2]
[389615908,1759750240308,-500.0,0.00016438,2]
[389615909,1759750240318,-500.0,0.00016438,2]
[389615910,1759750240328,-500.0,0.00016438,2]
[389615911,1759750240337,-500.0,0.00016438,2]
[389615912,1759750240347,-500.0,0.00016438,2]
[389615914,1759750240356,-500.0,0.00016438,2]
[389615915,1759750240366,-500.0,0.00016438,2]
[389615916,1759750240380,-500.0,0.00016438,2]
[389615917,1759750240389,-500.0,0.00016438,2]
[389615918,1759750240399,-500.0,0.00016438,2]
[389615919,1759750240408,-500.0,0.00016438,2]
[389615920,1759750240418,-500.0,0.00016438,2]
[389615921,1759750240428,-500.0,0.00016438,2]
[389615922,1759750240438,-266.33681838,0.00016438,2]
[389615923,1759750240448,-500.0,0.00016438,2]
[389615924,1759750240459,-500.0,0.00016438,2]
[389615925,1759750240470,-500.0,0.00016438,2]
[389615926,1759750240480,-500.0,0.00016438,2]
[389615927,1759750240490,-231.18566328,0.00016438,2]
[389615928,1759750240500,-500.0,0.00016438,2]
[389615929,1759750240510,-500.0,0.00016438,2]
[389615930,1759750240519,-500.0,0.00016438,2]
[389615931,1759750240531,-500.0,0.00016438,2]
[389615932,1759750240540,-298.60240107,0.00016438,2]
[389615933,1759750240550,-500.0,0.00016438,2]
[389615934,1759750240560,-500.0,0.00016438,2]
[389615936,1759750240569,-511.91661171,0.00016438,2]
[389615937,1759750240579,-500.0,0.00016438,2]
[389615939,1759750240588,-500.0,0.00016438,2]
[389615942,1759750240601,-350.89936628,0.00016438,2]
[389615944,1759750240611,-511.32872444,0.00016438,2]
[389615946,1759750240621,-500.0,0.00016438,2]
[389615947,1759750240630,-500.0,0.00016438,2]
[389615948,1759750240641,-500.0,0.00016438,2]
[389615949,1759750240651,-407.09031274,0.00016438,2]
[389615950,1759750240660,-500.0,0.00016438,2]
[389615951,1759750240670,-500.0,0.00016438,2]
[389615952,1759750240680,-500.0,0.00016438,2]
[389615953,1759750240689,-420.08505026,0.00016438,2]
[389615954,1759750240699,-500.0,0.00016438,2]
[389615955,1759750240708,-500.0,0.00016438,2]
[389615956,1759750240719,-500.0,0.00016438,2]
[389615957,1759750240729,-500.0,0.00016438,2]
[389615958,1759750240739,-500.0,0.00016438,2]
[389615959,1759750240748,-500.0,0.00016438,2]
[389615960,1759750240757,-500.0,0.00016438,2]
[389615961,1759750240767,-503.29561285,0.00016438,2]
[389615962,1759750240777,-169.29675673,0.00016438,2]
[389615963,1759750240786,-504.22736471,0.00016438,2]
[389615964,1759750240796,-500.0,0.00016438,2]
[389615965,1759750240805,-500.0,0.00016438,2]
[389615966,1759750240818,-500.0,0.00016438,2]
[389615967,1759750240828,-500.0,0.00016438,2]
[389615968,1759750240837,-500.0,0.00016438,2]
[389615969,1759750240846,-500.0,0.00016438,2]
[389615970,1759750240856,-500.0,0.00016438,2]
[389615971,1759750240866,-500.0,0.00016438,2]
[389615972,1759750240875,-500.0,0.00016438,2]
[389615973,1759750241000,-500.0,0.00016438,2]
[389615974,1759750241013,-500.0,0.00016438,2]
[389615975,1759750241023,-500.0,0.00016438,2]
[389615976,1759750241032,-500.0,0.00016438,2]
[389615977,1759750241043,-500.0,0.00016438,2]
[389615978,1759750241053,-500.0,0.00016438,2]
[389615979,1759750241062,-500.0,0.00016438,2]
[389615980,1759750241071,-500.0,0.00016438,2]
[389615981,1759750241080,-500.0,0.00016438,2]
[389615982,1759750241089,-500.0,0.00016438,2]
[389615983,1759750241098,-500.0,0.00016438,2]
[389615984,1759750241107,-500.0,0.00016438,2]
[389615985,1759750241116,-500.0,0.00016438,2]
[389615986,1759750241126,-500.0,0.00016438,2]
[389615987,1759750241135,-500.0,0.00016438,2]
[389615988,1759750241144,-500.0,0.00016438,2]
[389615989,1759750241153,-500.0,0.00016438,2]
[389615990,1759750241162,-500.0,0.00016438,2]
[389615991,1759750241171,-500.0,0.00016438,2]
[389615992,1759750241181,-461.38605445,0.00016438,2]
[389615993,1759750241190,-500.0,0.00016438,2]
[389615994,1759750241200,-589.17484392,0.00016438,2]
[389615995,1759750241209,-500.0,0.00016438,2]
[389615996,1759750241219,-500.0,0.00016438,2]
[389615997,1759750241228,-500.0,0.00016438,2]
[389615998,1759750241237,-500.0,0.00016438,2]
[389615999,1759750241246,-500.0,0.00016438,2]
[389616000,1759750241257,-500.0,0.00016438,2]
[389616001,1759750241266,-500.0,0.00016438,2]
[389616002,1759750241276,-500.0,0.00016438,2]
[389616003,1759750241285,-500.0,0.00016438,2]
[389616004,1759750241294,-500.0,0.00016438,2]
[389616005,1759750241304,-500.0,0.00016438,2]
[389616006,1759750241313,-1722.25,0.00016438,2]
[389616007,1759750241323,-500.0,0.00016438,2]
[389616008,1759750241332,-1722.25,0.00016438,2]
[389616009,1759750241343,-1722.25,0.00016438,2]
[389616010,1759750241352,-500.0,0.00016438,2]
[389616011,1759750241362,-1722.25,0.00016438,2]
[389616012,1759750241371,-500.0,0.00016438,2]
[389616013,1759750241380,-1722.25,0.00016438,2]
[389616014,1759750241389,-500.0,0.00016438,2]
[389616015,1759750241398,-636.77,0.00016438,2]
[389616016,1759750241407,-1722.25,0.00016438,2]
[389616017,1759750241415,-500.0,0.00016438,2]
[389616018,1759750241424,-636.77,0.00016438,2]
[389616019,1759750241436,-1722.25,0.00016438,2]
[389616020,1759750241445,-500.0,0.00016438,2]
[389616021,1759750241454,-636.77,0.00016438,2]
[389616022,1759750241470,-500.0,0.00016438,2]
[389616023,1759750241489,-1722.25,0.00016438,2]
[389616024,1759750241497,-636.77,0.00016438,2]
[389616025,1759750241508,-500.0,0.00016438,2]
[389616026,1759750241518,-1722.25,0.00016438,2]
[389616027,1759750241528,-636.77,0.00016438,2]
[389616028,1759750241537,-458.84939616,0.00016438,2]
[389616029,1759750241546,-1722.25,0.00016438,2]
[389616030,1759750241555,-636.77,0.00016438,2]
[389616031,1759750241564,-1722.25,0.00016438,2]
[389616032,1759750241574,-636.77,0.00016438,2]
[389616033,1759750241584,-1722.25,0.00016438,2]
[389616034,1759750241594,-636.77,0.00016438,2]
[389616035,1759750241604,-1722.25,0.00016438,2]
[389616036,1759750241614,-636.77,0.00016438,2]
[389616037,1759750241623,-1722.25,0.00016438,2]
[389616038,1759750241633,-636.77,0.00016438,2]
[389616039,1759750241643,-1722.25,0.00016438,2]
[389616040,1759750241653,-636.77,0.00016438,2]
[389616041,1759750241663,-1722.25,0.00016438,2]
[389616042,1759750241673,-1722.25,0.00016438,2]
[389616043,1759750241683,-636.77,0.00016438,2]
[389616044,1759750241692,-1264.21,0.00016438,2]
[389616045,1759750241702,-1722.25,0.00016438,2]
[389616046,1759750241712,-636.77,0.00016438,2]
[389616047,1759750241721,-1264.21,0.00016438,2]
[389616048,1759750241731,-1722.25,0.00016438,2]
[389616049,1759750241740,-636.77,0.00016438,2]
[389616050,1759750241753,-1264.21,0.00016438,2]
[389616051,1759750241764,-1722.25,0.00016438,2]
[389616052,1759750241774,-636.77,0.00016438,2]
[389616053,1759750241784,-1264.21,0.00016438,2]
[389616054,1759750241795,-1722.25,0.00016438,2]
[389616055,1759750241806,-636.77,0.00016438,2]
[389616056,1759750241816,-1722.25,0.00016438,2]
[389616057,1759750241825,-1264.21,0.00016438,2]
[389616058,1759750241834,-636.77,0.00016438,2]
[389616059,1759750241844,-1264.21,0.00016438,2]
[389616060,1759750241854,-636.77,0.00016438,2]
[389616061,1759750241864,-1722.25,0.00016438,2]
[389616062,1759750241874,-1264.21,0.00016438,2]
[389616063,1759750241883,-1722.25958244,0.00016438,2]
[389616064,1759750241893,-636.77,0.00016438,2]
[389616065,1759750241903,-1264.21,0.00016438,2]
[389616066,1759750241912,-636.77,0.00016438,2]
[389616067,1759750241922,-1264.21,0.00016438,2]
[389616068,1759750241932,-636.77,0.00016438,2]
[389616069,1759750241941,-1264.21,0.00016438,2]
[389616070,1759750241952,-636.77,0.00016438,2]
[389616071,1759750241962,-1264.21,0.00016438,2]
[389616072,1759750241972,-636.77,0.00016438,2]
[389616073,1759750241982,-636.86244395,0.00016438,2]
[389616074,1759750241991,-1264.21,0.00016438,2]
[389616075,1759750242001,-1264.21,0.00016438,2]
[389616076,1759750242011,-1264.21,0.00016438,2]
[389616077,1759750242020,-1264.21,0.00016438,2]
[389616078,1759750242030,-1264.21,0.00016438,2]
[389616079,1759750242040,-1264.21,0.00016438,2]
[389616080,1759750242049,-1264.21,0.00016438,2]
[389616081,1759750242059,-1264.21,0.00016438,2]
[389616082,1759750242070,-1264.21,0.00016438,2]
[389616083,1759750242080,-1264.21,0.00016438,2]
[389616084,1759750242090,-464.45921037,0.00016438,2]
[389616085,1759750242099,-1264.21,0.00016438,2]
[389616086,1759750242109,-1264.21,0.00016438,2]
[389616087,1759750242118,-1264.33120357,0.00016438,2]
[389616088,1759750242128,-621.54000359,0.00016438,2]
[389616089,1759750242138,-500.0,0.00016438,2]
[389616090,1759750242149,-500.0,0.00016438,2]
[389616091,1759750242159,-500.0,0.00016438,2]
[389616092,1759750242168,-500.0,0.00016438,2]
[389616093,1759750242177,-500.0,0.00016438,2]
[389616094,1759750242187,-500.0,0.00016438,2]
[389616095,1759750242196,-500.0,0.00016438,2]
[389616096,1759750242205,-500.0,0.00016438,2]
[389616097,1759750242214,-500.0,0.00016438,2]
[389616098,1759750242223,-500.0,0.00016438,2]
[389616099,1759750242232,-500.0,0.00016438,2]
[389616100,1759750242241,-500.0,0.00016438,2]
[389616101,1759750242252,-500.0,0.00016438,2]
[389616102,1759750242261,-500.0,0.00016438,2]
[389616103,1759750242270,-500.0,0.00016438,2]
[389616104,1759750242280,-500.0,0.00016438,2]
[389616105,1759750242290,-500.0,0.00016438,2]
[389616106,1759750242301,-500.0,0.00016438,2]
[389616107,1759750242312,-500.0,0.00016438,2]
[389616108,1759750242323,-500.0,0.00016438,2]
[389616109,1759750242332,-500.0,0.00016438,2]
[389616110,1759750242343,-626.31184495,0.00016438,2]
[389616111,1759750242352,-500.0,0.00016438,2]
[389616112,1759750242362,-500.0,0.00016438,2]
[389616113,1759750242371,-500.0,0.00016438,2]
[389616114,1759750242380,-500.0,0.00016438,2]
[389616115,1759750242390,-500.0,0.00016438,2]
[389616116,1759750242400,-500.0,0.00016438,2]
[389616117,1759750242410,-500.0,0.00016438,2]
[389616118,1759750242419,-500.0,0.00016438,2]
[389616119,1759750242429,-523.98233226,0.00016438,2]
[389616120,1759750242439,-500.0,0.00016438,2]
[389616121,1759750242448,-500.0,0.00016438,2]
[389616122,1759750242461,-500.0,0.00016438,2]
[389616123,1759750242470,-500.0,0.00016438,2]
[389616124,1759750242480,-500.0,0.00016438,2]
[389616125,1759750242490,-500.0,0.00016438,2]